[Event "January 9 Early 2024"]
[Site "https://www.chess.com"]
[Date "2024.01.11"]
[Round "6"]
[White "Kotlyar, Kirill"]
[Black "Zhuk, Valeriy"]
[Result "0-1"]
[Board "191"]
[TimeControl "180+1"]
[WhiteFideId "24145599"]
[BlackFideId "24151254"]
[WhiteElo "2579"]
[BlackElo "2419"]
[WhiteTeam "RUS"]
[BlackTeam "RUS"]
[WhiteClock "0:00:17"]
[BlackClock "0:00:16"]

1. e4 {[%clk 0:03:00]}  c5 {[%clk 0:02:59]} 2. Nf3 {[%clk 0:03:01]}  e6 {[%clk 0:02:59]} 3. d4 {[%clk 0:03:01]}  cxd4 {[%clk 0:03:00]} 4. Nxd4 {[%clk 0:03:02]}  Nf6 {[%clk 0:03:00]} 5. Nc3 {[%clk 0:03:02]}  Nc6 {[%clk 0:03:00]} 6. Ndb5 {[%clk 0:03:03]}  Bb4 {[%clk 0:03:00]} 7. a3 {[%clk 0:03:01]}  Bxc3+ {[%clk 0:03:00]} 8. Nxc3 {[%clk 0:03:02]}  d5 {[%clk 0:03:00]} 9. exd5 {[%clk 0:03:03]}  exd5 {[%clk 0:03:01]} 10. Bd3 {[%clk 0:03:04]}  O-O {[%clk 0:03:01]} 11. O-O {[%clk 0:03:04]}  Bg4 {[%clk 0:03:01]} 12. f3 {[%clk 0:03:03]}  Qb6+ {[%clk 0:03:00]} 13. Kh1 {[%clk 0:03:02]}  Bh5 {[%clk 0:03:00]} 14. Rb1 {[%clk 0:02:56]}  d4 {[%clk 0:02:39]} 15. Ne2 {[%clk 0:02:55]}  Bg6 {[%clk 0:02:29]} 16. Nf4 {[%clk 0:02:48]}  Rfe8 {[%clk 0:02:18]} 17. Nxg6 {[%clk 0:02:22]}  hxg6 {[%clk 0:02:18]} 18. Bg5 {[%clk 0:02:17]}  Nd5 {[%clk 0:02:17]} 19. Qd2 {[%clk 0:02:17]}  Ne3 {[%clk 0:02:15]} 20. Rfe1 {[%clk 0:02:18]}  Qc5 {[%clk 0:01:48]} 21. Bh4 {[%clk 0:02:05]}  g5 {[%clk 0:01:05]} 22. Bf2 {[%clk 0:02:04]}  f5 {[%clk 0:01:05]} 23. b4 {[%clk 0:01:55]}  Qb6 {[%clk 0:00:46]} 24. c4 {[%clk 0:01:26]}  f4 {[%clk 0:00:44]} 25. c5 {[%clk 0:01:20]}  Qc7 {[%clk 0:00:42]} 26. Qa2+ {[%clk 0:01:19]}  Qf7 {[%clk 0:00:37]} 27. Qb2 {[%clk 0:01:15]}  Rad8 {[%clk 0:00:34]} 28. Rbc1 {[%clk 0:01:12]}  Ne5 {[%clk 0:00:31]} 29. Bb5 {[%clk 0:01:12]}  Re7 {[%clk 0:00:30]} 30. Bxe3 {[%clk 0:01:06]}  fxe3 {[%clk 0:00:27]} 31. Rcd1 {[%clk 0:00:56]}  Qf4 {[%clk 0:00:25]} 32. Qb3+ {[%clk 0:00:47]}  Kh8 {[%clk 0:00:22]} 33. Be2 {[%clk 0:00:47]}  g4 {[%clk 0:00:16]} 34. fxg4 {[%clk 0:00:42]}  Nxg4 {[%clk 0:00:17]} 35. Bxg4 {[%clk 0:00:43]}  Qxg4 {[%clk 0:00:17]} 36. Qc4 {[%clk 0:00:39]}  Qe4 {[%clk 0:00:15]} 37. b5 {[%clk 0:00:35]}  e2 {[%clk 0:00:15]} 38. Rd2 {[%clk 0:00:32]}  d3 {[%clk 0:00:14]} 39. Qxe4 {[%clk 0:00:19]}  Rxe4 {[%clk 0:00:15]} 40. c6 {[%clk 0:00:20]}  bxc6 {[%clk 0:00:14]} 41. bxc6 {[%clk 0:00:21]}  Rc4 {[%clk 0:00:15]} 42. h4 {[%clk 0:00:21]}  Rxc6 {[%clk 0:00:15]} 43. Rexe2 {[%clk 0:00:21]}  Rc1+ {[%clk 0:00:14]} 44. Kh2 {[%clk 0:00:21]}  dxe2 {[%clk 0:00:14]} 45. Rxd8+ {[%clk 0:00:21]}  Kh7 {[%clk 0:00:15]} 46. Re8 {[%clk 0:00:16]}  e1=Q {[%clk 0:00:15]} 47. Rxe1 {[%clk 0:00:17]}  Rxe1 {[%clk 0:00:16]} 0-1

[Event "January 9 Early 2024"]
[Site "https://www.chess.com"]
[Date "2024.01.11"]
[Round "6"]
[White "Subramanian, Anusha"]
[Black "Recuero Guerra, Javier"]
[Result "0-1"]
[Board "194"]
[TimeControl "180+1"]
[WhiteFideId "477710"]
[BlackFideId "2254085"]
[WhiteElo "2103"]
[BlackElo "2304"]
[WhiteTeam "ENG"]
[BlackTeam "ESP"]
[WhiteClock "0:00:01"]
[BlackClock "0:00:02"]

1. e4 {[%clk 0:03:00]}  c5 {[%clk 0:02:49]} 2. Nf3 {[%clk 0:03:00]}  e6 {[%clk 0:02:49]} 3. d4 {[%clk 0:03:01]}  cxd4 {[%clk 0:02:50]} 4. Nxd4 {[%clk 0:03:01]}  Bc5 {[%clk 0:02:50]} 5. Nb3 {[%clk 0:03:00]}  Bb6 {[%clk 0:02:50]} 6. Nc3 {[%clk 0:02:56]}  Ne7 {[%clk 0:02:50]} 7. f3 {[%clk 0:02:53]}  O-O {[%clk 0:02:44]} 8. Bf4 {[%clk 0:02:52]}  f5 {[%clk 0:02:42]} 9. Qd2 {[%clk 0:02:46]}  Nbc6 {[%clk 0:02:39]} 10. O-O-O {[%clk 0:02:45]}  fxe4 {[%clk 0:02:27]} 11. Nxe4 {[%clk 0:02:44]}  Nd5 {[%clk 0:02:22]} 12. Bg5 {[%clk 0:02:28]}  Qe8 {[%clk 0:02:12]} 13. Nd6 {[%clk 0:02:10]}  Qg6 {[%clk 0:02:07]} 14. Bd3 {[%clk 0:02:10]}  Qxg5 {[%clk 0:01:55]} 15. Qxg5 {[%clk 0:01:43]}  Be3+ {[%clk 0:01:55]} 16. Qxe3 {[%clk 0:01:42]}  Nxe3 {[%clk 0:01:55]} 17. Rd2 {[%clk 0:01:40]}  Ne7 {[%clk 0:01:46]} 18. Re2 {[%clk 0:01:36]}  N3f5 {[%clk 0:01:45]} 19. Bxf5 {[%clk 0:01:34]}  Nxf5 {[%clk 0:01:46]} 20. Rd2 {[%clk 0:01:23]}  Nxd6 {[%clk 0:01:43]} 21. Rxd6 {[%clk 0:01:24]}  b6 {[%clk 0:01:43]} 22. Rhd1 {[%clk 0:01:23]}  Kf7 {[%clk 0:01:41]} 23. R1d4 {[%clk 0:01:20]}  Ke7 {[%clk 0:01:40]} 24. Nd2 {[%clk 0:01:20]}  Rd8 {[%clk 0:01:22]} 25. Ne4 {[%clk 0:01:09]}  Bb7 {[%clk 0:01:22]} 26. Kd2 {[%clk 0:00:48]}  Bc6 {[%clk 0:00:58]} 27. c3 {[%clk 0:00:44]}  Rf8 {[%clk 0:00:47]} 28. Ng5 {[%clk 0:00:45]}  Rf6 {[%clk 0:00:31]} 29. Nxh7 {[%clk 0:00:43]}  Rg6 {[%clk 0:00:29]} 30. h4 {[%clk 0:00:36]}  Rxg2+ {[%clk 0:00:25]} 31. Ke3 {[%clk 0:00:32]}  Rh8 {[%clk 0:00:16]} 32. Ng5 {[%clk 0:00:31]}  Rxh4 {[%clk 0:00:09]} 33. Rxh4 {[%clk 0:00:15]}  Kxd6 {[%clk 0:00:09]} 34. Ne4+ {[%clk 0:00:05]}  Bxe4 {[%clk 0:00:08]} 35. Rxe4 {[%clk 0:00:06]}  Rxb2 {[%clk 0:00:08]} 36. a4 {[%clk 0:00:06]}  a5 {[%clk 0:00:04]} 37. Rg4 {[%clk 0:00:06]}  Ra2 {[%clk 0:00:03]} 38. Kd3 {[%clk 0:00:04]}  Kc6 {[%clk 0:00:02]} 39. Rf4 {[%clk 0:00:02]}  g5 {[%clk 0:00:01]} 40. Rg4 {[%clk 0:00:02]}  Ra3 {[%clk 0:00:02]} 41. Rxg5 {[%clk 0:00:01]}  Rxa4 {[%clk 0:00:02]} 0-1

[Event "January 9 Early 2024"]
[Site "https://www.chess.com"]
[Date "2024.01.11"]
[Round "6"]
[White "Svane, Rasmus"]
[Black "Livaic, Leon"]
[Result "1-0"]
[Board "195"]
[TimeControl "180+1"]
[WhiteFideId "4657101"]
[BlackFideId "14531534"]
[WhiteElo "3028"]
[BlackElo "2922"]
[WhiteTeam "GER"]
[BlackTeam "CRO"]
[WhiteClock "0:00:07"]
[BlackClock "0:00:01"]

1. Nf3 {[%clk 0:03:00]}  g6 {[%clk 0:02:55]} 2. e4 {[%clk 0:03:00]}  c5 {[%clk 0:02:53]} 3. d4 {[%clk 0:02:58]}  cxd4 {[%clk 0:02:54]} 4. Nxd4 {[%clk 0:02:59]}  Bg7 {[%clk 0:02:54]} 5. c4 {[%clk 0:02:58]}  Nc6 {[%clk 0:02:54]} 6. Be3 {[%clk 0:02:57]}  Nf6 {[%clk 0:02:47]} 7. Nc3 {[%clk 0:02:56]}  d6 {[%clk 0:02:43]} 8. Be2 {[%clk 0:02:55]}  O-O {[%clk 0:02:43]} 9. O-O {[%clk 0:02:55]}  Nxd4 {[%clk 0:02:42]} 10. Bxd4 {[%clk 0:02:55]}  Bd7 {[%clk 0:02:40]} 11. Qd3 {[%clk 0:02:44]}  Bc6 {[%clk 0:02:39]} 12. b4 {[%clk 0:02:43]}  b6 {[%clk 0:02:28]} 13. Rfd1 {[%clk 0:02:16]}  Rc8 {[%clk 0:02:17]} 14. h3 {[%clk 0:02:12]}  Nd7 {[%clk 0:02:03]} 15. Bxg7 {[%clk 0:02:10]}  Kxg7 {[%clk 0:02:04]} 16. Bg4 {[%clk 0:02:05]}  Ne5 {[%clk 0:01:53]} 17. Qd4 {[%clk 0:02:03]}  Bd7 {[%clk 0:01:43]} 18. Be2 {[%clk 0:01:44]}  f6 {[%clk 0:01:35]} 19. Nd5 {[%clk 0:01:42]}  g5 {[%clk 0:01:24]} 20. Rac1 {[%clk 0:01:39]}  Qe8 {[%clk 0:01:21]} 21. Ne3 {[%clk 0:01:39]}  h5 {[%clk 0:01:18]} 22. c5 {[%clk 0:01:32]}  bxc5 {[%clk 0:01:17]} 23. bxc5 {[%clk 0:01:32]}  dxc5 {[%clk 0:01:13]} 24. Rxc5 {[%clk 0:01:33]}  Rxc5 {[%clk 0:00:58]} 25. Qxc5 {[%clk 0:01:34]}  h4 {[%clk 0:00:45]} 26. Qxa7 {[%clk 0:01:27]}  Be6 {[%clk 0:00:44]} 27. Bg4 {[%clk 0:01:24]}  Nxg4 {[%clk 0:00:24]} 28. hxg4 {[%clk 0:01:25]}  Rf7 {[%clk 0:00:24]} 29. Qa6 {[%clk 0:01:07]}  Bc8 {[%clk 0:00:21]} 30. Qc4 {[%clk 0:01:05]}  e5 {[%clk 0:00:20]} 31. a4 {[%clk 0:00:46]}  Be6 {[%clk 0:00:19]} 32. Nf5+ {[%clk 0:00:39]}  Bxf5 {[%clk 0:00:18]} 33. exf5 {[%clk 0:00:40]}  Qa8 {[%clk 0:00:14]} 34. Ra1 {[%clk 0:00:35]}  Qa5 {[%clk 0:00:13]} 35. Rb1 {[%clk 0:00:29]}  Rc7 {[%clk 0:00:09]} 36. Qb5 {[%clk 0:00:26]}  Qd2 {[%clk 0:00:10]} 37. Qb2 {[%clk 0:00:23]}  Qf4 {[%clk 0:00:04]} 38. Qb6 {[%clk 0:00:10]}  Rd7 {[%clk 0:00:03]} 39. Qc6 {[%clk 0:00:08]}  Rf7 {[%clk 0:00:02]} 40. Rb7 {[%clk 0:00:08]}  Rxb7 {[%clk 0:00:02]} 41. Qxb7+ {[%clk 0:00:08]}  Kh6 {[%clk 0:00:02]} 42. Qc6 {[%clk 0:00:07]}  Qxg4 {[%clk 0:00:01]} 43. Qxf6+ {[%clk 0:00:07]}  Kh7 {[%clk 0:00:02]} 44. Qg6+ {[%clk 0:00:08]}  Kh8 {[%clk 0:00:03]} 45. f6 {[%clk 0:00:08]}  Qd7 {[%clk 0:00:01]} 46. Qxg5 {[%clk 0:00:07]}  Qd1+ {[%clk 0:00:01]} 47. Kh2 {[%clk 0:00:07]} 1-0

[Event "January 9 Early 2024"]
[Site "https://www.chess.com"]
[Date "2024.01.11"]
[Round "6"]
[White "Indjic, Aleksandar"]
[Black "Vela Frago, Alberto"]
[Result "1-0"]
[Board "197"]
[TimeControl "180+1"]
[WhiteFideId "911925"]
[BlackFideId "24531685"]
[WhiteElo "2891"]
[BlackElo "2354"]
[WhiteTeam "SRB"]
[BlackTeam "ESP"]
[WhiteClock "0:00:17"]
[BlackClock "0:00:01"]

1. d4 {[%clk 0:03:00]}  Nf6 {[%clk 0:02:58]} 2. c4 {[%clk 0:02:50]}  g6 {[%clk 0:02:54]} 3. Nc3 {[%clk 0:02:51]}  Bg7 {[%clk 0:02:52]} 4. e4 {[%clk 0:02:51]}  d6 {[%clk 0:02:51]} 5. Nf3 {[%clk 0:02:51]}  O-O {[%clk 0:02:49]} 6. Bd3 {[%clk 0:02:52]}  Na6 {[%clk 0:02:46]} 7. Bg5 {[%clk 0:02:49]}  h6 {[%clk 0:02:41]} 8. Bd2 {[%clk 0:02:44]}  e5 {[%clk 0:02:37]} 9. d5 {[%clk 0:02:43]}  Nc5 {[%clk 0:02:34]} 10. Bc2 {[%clk 0:02:43]}  a5 {[%clk 0:02:32]} 11. Be3 {[%clk 0:02:43]}  Nfd7 {[%clk 0:02:21]} 12. g4 {[%clk 0:02:41]}  a4 {[%clk 0:02:04]} 13. Rg1 {[%clk 0:02:40]}  c6 {[%clk 0:01:45]} 14. dxc6 {[%clk 0:02:39]}  bxc6 {[%clk 0:01:42]} 15. Qxd6 {[%clk 0:02:39]}  Qa5 {[%clk 0:01:39]} 16. a3 {[%clk 0:02:21]}  Ba6 {[%clk 0:01:30]} 17. O-O-O {[%clk 0:02:08]}  Bxc4 {[%clk 0:01:20]} 18. Nh4 {[%clk 0:01:40]}  Rfb8 {[%clk 0:01:08]} 19. Qd2 {[%clk 0:01:24]}  Qb6 {[%clk 0:00:57]} 20. Bxa4 {[%clk 0:01:08]}  Nd3+ {[%clk 0:00:50]} 21. Kb1 {[%clk 0:01:00]}  Qxb2+ {[%clk 0:00:49]} 22. Qxb2 {[%clk 0:01:00]}  Rxb2+ {[%clk 0:00:47]} 23. Ka1 {[%clk 0:01:00]}  Rb7 {[%clk 0:00:35]} 24. Rb1 {[%clk 0:00:45]}  Rxb1+ {[%clk 0:00:32]} 25. Rxb1 {[%clk 0:00:46]}  N7c5 {[%clk 0:00:32]} 26. Bxc5 {[%clk 0:00:45]}  Nxc5 {[%clk 0:00:32]} 27. Bc2 {[%clk 0:00:37]}  Rxa3+ {[%clk 0:00:30]} 28. Kb2 {[%clk 0:00:38]}  Ra8 {[%clk 0:00:29]} 29. Kc1 {[%clk 0:00:38]}  Bf6 {[%clk 0:00:23]} 30. Nf3 {[%clk 0:00:38]}  Bd3 {[%clk 0:00:21]} 31. Rb6 {[%clk 0:00:33]}  Rc8 {[%clk 0:00:16]} 32. Kd2 {[%clk 0:00:32]}  Bxc2 {[%clk 0:00:15]} 33. Kxc2 {[%clk 0:00:33]}  Ne6 {[%clk 0:00:13]} 34. Na4 {[%clk 0:00:29]}  Nd4+ {[%clk 0:00:14]} 35. Nxd4 {[%clk 0:00:29]}  exd4 {[%clk 0:00:14]} 36. Nb2 {[%clk 0:00:29]}  Bg5 {[%clk 0:00:12]} 37. Nc4 {[%clk 0:00:29]}  c5 {[%clk 0:00:11]} 38. Kd3 {[%clk 0:00:28]}  Bf4 {[%clk 0:00:09]} 39. h3 {[%clk 0:00:27]}  Ra8 {[%clk 0:00:09]} 40. e5 {[%clk 0:00:28]}  Ra1 {[%clk 0:00:08]} 41. f3 {[%clk 0:00:28]}  Rh1 {[%clk 0:00:07]} 42. Ke4 {[%clk 0:00:29]}  g5 {[%clk 0:00:06]} 43. Nd6 {[%clk 0:00:28]}  Rxh3 {[%clk 0:00:06]} 44. Rb8+ {[%clk 0:00:27]}  Kg7 {[%clk 0:00:06]} 45. Nf5+ {[%clk 0:00:28]}  Kh7 {[%clk 0:00:05]} 46. Rb7 {[%clk 0:00:28]}  d3 {[%clk 0:00:04]} 47. Rxf7+ {[%clk 0:00:27]}  Kg8 {[%clk 0:00:04]} 48. e6 {[%clk 0:00:22]}  Rh1 {[%clk 0:00:02]} 49. Ne7+ {[%clk 0:00:20]}  Kh8 {[%clk 0:00:02]} 50. Ng6+ {[%clk 0:00:20]}  Kg8 {[%clk 0:00:02]} 51. Kf5 {[%clk 0:00:19]}  Re1 {[%clk 0:00:02]} 52. Kf6 {[%clk 0:00:18]}  d2 {[%clk 0:00:01]} 53. Rg7# {[%clk 0:00:17]} 1-0

[Event "January 9 Early 2024"]
[Site "https://www.chess.com"]
[Date "2024.01.11"]
[Round "6"]
[White "Wagner, Dennis"]
[Black "Erzhanov, Arman"]
[Result "0-1"]
[Board "198"]
[TimeControl "180+1"]
[WhiteFideId "24650684"]
[BlackFideId "4138821"]
[WhiteElo "2736"]
[BlackElo "2541"]
[WhiteTeam "GER"]
[BlackTeam "KAZ"]
[WhiteClock "0:00:03"]
[BlackClock "0:00:01"]

1. c4 {[%clk 0:03:00]}  d6 {[%clk 0:02:59]} 2. Nc3 {[%clk 0:02:58]}  e5 {[%clk 0:02:57]} 3. g3 {[%clk 0:02:54]}  g6 {[%clk 0:02:57]} 4. Bg2 {[%clk 0:02:53]}  Bg7 {[%clk 0:02:57]} 5. d3 {[%clk 0:02:53]}  Nc6 {[%clk 0:02:57]} 6. Rb1 {[%clk 0:02:52]}  a5 {[%clk 0:02:53]} 7. a3 {[%clk 0:02:53]}  Be6 {[%clk 0:02:44]} 8. b4 {[%clk 0:02:49]}  axb4 {[%clk 0:02:44]} 9. axb4 {[%clk 0:02:50]}  Qd7 {[%clk 0:02:41]} 10. b5 {[%clk 0:02:49]}  Nd8 {[%clk 0:02:40]} 11. h4 {[%clk 0:02:45]}  Nf6 {[%clk 0:02:34]} 12. Bg5 {[%clk 0:02:11]}  h6 {[%clk 0:02:29]} 13. Bxf6 {[%clk 0:02:11]}  Bxf6 {[%clk 0:02:30]} 14. Nd5 {[%clk 0:02:12]}  Bg7 {[%clk 0:02:30]} 15. h5 {[%clk 0:02:12]}  g5 {[%clk 0:02:29]} 16. b6 {[%clk 0:02:00]}  Bxd5 {[%clk 0:02:28]} 17. cxd5 {[%clk 0:01:59]}  O-O {[%clk 0:02:23]} 18. bxc7 {[%clk 0:01:48]}  Qxc7 {[%clk 0:02:23]} 19. g4 {[%clk 0:01:49]}  f5 {[%clk 0:01:55]} 20. gxf5 {[%clk 0:01:48]}  Rxf5 {[%clk 0:01:55]} 21. Be4 {[%clk 0:01:49]}  Qc3+ {[%clk 0:01:51]} 22. Kf1 {[%clk 0:01:45]}  Rf7 {[%clk 0:01:43]} 23. e3 {[%clk 0:01:43]}  Ra2 {[%clk 0:01:41]} 24. Ne2 {[%clk 0:01:43]}  Qa5 {[%clk 0:01:34]} 25. Qc1 {[%clk 0:01:07]}  Rc7 {[%clk 0:01:25]} 26. Qe1 {[%clk 0:01:01]}  Qa3 {[%clk 0:00:49]} 27. Nc1 {[%clk 0:00:41]}  Rac2 {[%clk 0:00:40]} 28. Kg2 {[%clk 0:00:41]}  Rf7 {[%clk 0:00:33]} 29. Rf1 {[%clk 0:00:40]}  Qa4 {[%clk 0:00:16]} 30. Ne2 {[%clk 0:00:34]}  Qd7 {[%clk 0:00:15]} 31. Ng3 {[%clk 0:00:31]}  Qg4 {[%clk 0:00:13]} 32. Qd1 {[%clk 0:00:14]}  Qc8 {[%clk 0:00:10]} 33. Bf5 {[%clk 0:00:09]}  Qc7 {[%clk 0:00:07]} 34. Qg4 {[%clk 0:00:08]}  Kh8 {[%clk 0:00:07]} 35. Ne4 {[%clk 0:00:07]}  b6 {[%clk 0:00:04]} 36. Bg6 {[%clk 0:00:07]}  Rf8 {[%clk 0:00:04]} 37. Rb3 {[%clk 0:00:05]}  Nb7 {[%clk 0:00:04]} 38. Rfb1 {[%clk 0:00:05]}  Nc5 {[%clk 0:00:04]} 39. Rxb6 {[%clk 0:00:04]}  Nxd3 {[%clk 0:00:02]} 40. Rb7 {[%clk 0:00:03]}  Qc4 {[%clk 0:00:02]} 41. Qd7 {[%clk 0:00:03]}  Rcxf2+ {[%clk 0:00:01]} 0-1

[Event "January 9 Early 2024"]
[Site "https://www.chess.com"]
[Date "2024.01.11"]
[Round "6"]
[White "Olenik Campa, Rudi"]
[Black "Garbarino, Rodolfo"]
[Result "1-0"]
[Board "199"]
[TimeControl "180+1"]
[WhiteFideId "14633264"]
[BlackFideId "100412"]
[WhiteElo "2557"]
[BlackElo "2363"]
[WhiteTeam "SLO"]
[BlackTeam "ARG"]
[WhiteClock "0:00:05"]
[BlackClock "0:00:19"]

1. e4 {[%clk 0:03:00]}  e5 {[%clk 0:02:59]} 2. Nf3 {[%clk 0:02:56]}  Nc6 {[%clk 0:02:59]} 3. Bc4 {[%clk 0:02:57]}  Bc5 {[%clk 0:02:58]} 4. Qe2 {[%clk 0:02:56]}  d6 {[%clk 0:02:53]} 5. O-O {[%clk 0:02:54]}  Bg4 {[%clk 0:02:48]} 6. c3 {[%clk 0:02:54]}  Qf6 {[%clk 0:02:48]} 7. a4 {[%clk 0:02:48]}  a6 {[%clk 0:02:44]} 8. b4 {[%clk 0:02:47]}  Ba7 {[%clk 0:02:44]} 9. b5 {[%clk 0:02:47]}  Na5 {[%clk 0:02:36]} 10. Ba2 {[%clk 0:02:13]}  Ne7 {[%clk 0:02:25]} 11. bxa6 {[%clk 0:02:11]}  bxa6 {[%clk 0:02:25]} 12. h3 {[%clk 0:02:11]}  Bxf3 {[%clk 0:02:18]} 13. Qxf3 {[%clk 0:02:12]}  Qxf3 {[%clk 0:02:18]} 14. gxf3 {[%clk 0:02:13]}  Ng6 {[%clk 0:02:06]} 15. d3 {[%clk 0:02:13]}  Rb8 {[%clk 0:01:56]} 16. Be3 {[%clk 0:01:57]}  Bxe3 {[%clk 0:01:50]} 17. fxe3 {[%clk 0:01:58]}  Nb3 {[%clk 0:01:51]} 18. Bxb3 {[%clk 0:01:55]}  Rxb3 {[%clk 0:01:51]} 19. Rf2 {[%clk 0:01:15]}  Ke7 {[%clk 0:01:49]} 20. Rc2 {[%clk 0:01:09]}  Rhb8 {[%clk 0:01:33]} 21. Nd2 {[%clk 0:01:09]}  Rb2 {[%clk 0:01:32]} 22. Rac1 {[%clk 0:01:08]}  c6 {[%clk 0:01:24]} 23. d4 {[%clk 0:01:04]}  d5 {[%clk 0:01:09]} 24. Kf2 {[%clk 0:01:02]}  Kd6 {[%clk 0:01:03]} 25. Ke2 {[%clk 0:00:54]}  Ke6 {[%clk 0:00:57]} 26. c4 {[%clk 0:00:52]}  dxe4 {[%clk 0:00:48]} 27. fxe4 {[%clk 0:00:51]}  c5 {[%clk 0:00:43]} 28. dxc5 {[%clk 0:00:21]}  Kd7 {[%clk 0:00:38]} 29. Nf3 {[%clk 0:00:16]}  f6 {[%clk 0:00:36]} 30. h4 {[%clk 0:00:16]}  Kc6 {[%clk 0:00:35]} 31. h5 {[%clk 0:00:15]}  Nf8 {[%clk 0:00:35]} 32. Kd3 {[%clk 0:00:14]}  R8b3+ {[%clk 0:00:32]} 33. Ke2 {[%clk 0:00:13]}  Kxc5 {[%clk 0:00:32]} 34. Rxb2 {[%clk 0:00:10]}  Rxb2+ {[%clk 0:00:31]} 35. Nd2 {[%clk 0:00:10]}  Ra2 {[%clk 0:00:30]} 36. Rg1 {[%clk 0:00:10]}  Ne6 {[%clk 0:00:29]} 37. h6 {[%clk 0:00:09]}  g6 {[%clk 0:00:27]} 38. Rf1 {[%clk 0:00:09]}  Ng5 {[%clk 0:00:27]} 39. Kd3 {[%clk 0:00:09]}  Rxd2+ {[%clk 0:00:25]} 40. Kxd2 {[%clk 0:00:08]}  Nxe4+ {[%clk 0:00:25]} 41. Kd3 {[%clk 0:00:08]}  f5 {[%clk 0:00:26]} 42. Rb1 {[%clk 0:00:07]}  Nf2+ {[%clk 0:00:25]} 43. Ke2 {[%clk 0:00:06]}  Ne4 {[%clk 0:00:24]} 44. Rb7 {[%clk 0:00:06]}  Nf6 {[%clk 0:00:22]} 45. Rf7 {[%clk 0:00:06]}  Ng4 {[%clk 0:00:22]} 46. Rxh7 {[%clk 0:00:06]}  Kxc4 {[%clk 0:00:22]} 47. Rc7+ {[%clk 0:00:06]}  Kb4 {[%clk 0:00:20]} 48. h7 {[%clk 0:00:06]}  Kxa4 {[%clk 0:00:19]} 49. h8=Q {[%clk 0:00:07]}  Kb5 {[%clk 0:00:20]} 50. Qb8+ {[%clk 0:00:07]}  Ka5 {[%clk 0:00:19]} 51. Rc5+ {[%clk 0:00:05]}  Ka4 {[%clk 0:00:19]} 52. Qb6 {[%clk 0:00:05]}  a5 {[%clk 0:00:19]} 53. Rxa5# {[%clk 0:00:05]} 1-0

[Event "January 9 Early 2024"]
[Site "https://www.chess.com"]
[Date "2024.01.11"]
[Round "6"]
[White "Kobalia, Mikhail"]
[Black "Shohat, Yotam"]
[Result "1-0"]
[Board "201"]
[TimeControl "180+1"]
[WhiteFideId "4119150"]
[BlackFideId "2813955"]
[WhiteElo "2766"]
[BlackElo "2438"]
[WhiteTeam "FID"]
[BlackTeam "ISR"]
[WhiteClock "0:00:10"]
[BlackClock "0:00:05"]

1. e4 {[%clk 0:03:00]}  c5 {[%clk 0:02:57]} 2. Nf3 {[%clk 0:03:00]}  d6 {[%clk 0:02:56]} 3. Bc4 {[%clk 0:02:59]}  Nf6 {[%clk 0:02:53]} 4. d3 {[%clk 0:03:00]}  Nc6 {[%clk 0:02:46]} 5. a3 {[%clk 0:02:59]}  g6 {[%clk 0:02:44]} 6. O-O {[%clk 0:02:57]}  Bg7 {[%clk 0:02:37]} 7. h3 {[%clk 0:02:54]}  O-O {[%clk 0:02:33]} 8. Re1 {[%clk 0:02:53]}  a6 {[%clk 0:02:28]} 9. Nbd2 {[%clk 0:02:52]}  b5 {[%clk 0:02:28]} 10. Ba2 {[%clk 0:02:52]}  Bb7 {[%clk 0:02:27]} 11. c3 {[%clk 0:02:52]}  Nd7 {[%clk 0:02:26]} 12. Nf1 {[%clk 0:02:49]}  e6 {[%clk 0:02:25]} 13. d4 {[%clk 0:02:47]}  Re8 {[%clk 0:02:19]} 14. Be3 {[%clk 0:02:45]}  Na5 {[%clk 0:02:14]} 15. Ng3 {[%clk 0:02:37]}  Nc4 {[%clk 0:02:10]} 16. Bxc4 {[%clk 0:02:30]}  bxc4 {[%clk 0:02:10]} 17. Nd2 {[%clk 0:02:23]}  cxd4 {[%clk 0:02:09]} 18. cxd4 {[%clk 0:02:21]}  Nb6 {[%clk 0:01:53]} 19. Rc1 {[%clk 0:02:20]}  Rc8 {[%clk 0:01:52]} 20. Nb1 {[%clk 0:02:20]}  Qd7 {[%clk 0:01:21]} 21. Nc3 {[%clk 0:02:19]}  Rb8 {[%clk 0:01:22]} 22. d5 {[%clk 0:01:59]}  Ba8 {[%clk 0:01:12]} 23. dxe6 {[%clk 0:01:59]}  fxe6 {[%clk 0:00:59]} 24. Bd4 {[%clk 0:01:59]}  e5 {[%clk 0:00:55]} 25. Be3 {[%clk 0:01:46]}  Rec8 {[%clk 0:00:36]} 26. Nf1 {[%clk 0:01:41]}  d5 {[%clk 0:00:34]} 27. Bxb6 {[%clk 0:01:33]}  Rxb6 {[%clk 0:00:35]} 28. exd5 {[%clk 0:01:30]}  Rxb2 {[%clk 0:00:35]} 29. Ne3 {[%clk 0:01:29]}  Rb3 {[%clk 0:00:33]} 30. Ne4 {[%clk 0:01:27]}  Rd3 {[%clk 0:00:28]} 31. Qe2 {[%clk 0:00:59]}  Bxd5 {[%clk 0:00:27]} 32. Nxd5 {[%clk 0:00:49]}  Qxd5 {[%clk 0:00:25]} 33. Rc2 {[%clk 0:00:48]}  Qd4 {[%clk 0:00:24]} 34. Rb1 {[%clk 0:00:42]}  Rd8 {[%clk 0:00:20]} 35. Rb4 {[%clk 0:00:39]}  Rd1+ {[%clk 0:00:16]} 36. Kh2 {[%clk 0:00:39]}  Qa1 {[%clk 0:00:09]} 37. Qxc4+ {[%clk 0:00:38]}  Kh8 {[%clk 0:00:09]} 38. Ng5 {[%clk 0:00:36]}  Rh1+ {[%clk 0:00:09]} 39. Kg3 {[%clk 0:00:36]}  h6 {[%clk 0:00:06]} 40. Nf7+ {[%clk 0:00:35]}  Kh7 {[%clk 0:00:06]} 41. Nxd8 {[%clk 0:00:35]}  e4 {[%clk 0:00:06]} 42. Qxe4 {[%clk 0:00:19]}  Qg1 {[%clk 0:00:06]} 43. Rb6 {[%clk 0:00:16]}  Be5+ {[%clk 0:00:04]} 44. Kf3 {[%clk 0:00:14]}  Qd1+ {[%clk 0:00:04]} 45. Re2 {[%clk 0:00:13]}  Rxh3+ {[%clk 0:00:04]} 46. gxh3 {[%clk 0:00:12]}  Qh1+ {[%clk 0:00:05]} 47. Ke3 {[%clk 0:00:12]}  Qc1+ {[%clk 0:00:05]} 48. Rd2 {[%clk 0:00:12]}  Qc5+ {[%clk 0:00:05]} 49. Ke2 {[%clk 0:00:10]} 1-0